fUSD/lending_fUSD_20240331
["ID","MTS","AMOUNT","RATE_DAILY","PERIOD"]
[321078741,1711883455030,-151.0,0.00042032,14]
[321078742,1711883455040,-174.32646,0.00042032,14]
[321078743,1711883455049,-151.0,0.00042032,14]
[321078744,1711883455058,-178.701353,0.00042032,14]
[321078745,1711883455067,-525.798803,0.00042032,14]
[321078746,1711883455076,-525.798803,0.00042032,14]
[321078747,1711883455086,-525.798803,0.00042032,14]
[321078748,1711883455094,-525.798803,0.00042032,14]
[321078749,1711883455103,-525.798803,0.00042032,14]
[321078750,1711883455112,-525.798803,0.00042032,14]
[321078751,1711883455121,-525.798803,0.00042032,14]
[321078752,1711883455131,-525.798803,0.00042032,14]
[321078753,1711883455140,-525.798803,0.00042032,14]
[321078754,1711883455149,-525.798803,0.00042032,14]
[321078755,1711883455158,-525.798803,0.00042032,14]
[321078756,1711883455167,-525.798803,0.00042032,14]
[321078757,1711883455177,-151.0,0.00042032,14]
[321078758,1711883455188,-151.0,0.00042032,14]
[321078759,1711883455196,-163.011692,0.00042032,14]
[321078760,1711883455205,-170.535119,0.00042032,14]
[321078761,1711883455215,-170.535119,0.00042032,14]
[321078762,1711883455224,-170.535119,0.00042032,14]
[321078763,1711883455233,-170.535119,0.00042032,14]
[321078764,1711883455242,-170.535119,0.00042032,14]
[321078765,1711883455251,-170.535119,0.00042032,14]
[321078766,1711883455261,-170.535119,0.00042032,14]
[321078767,1711883455270,-151.0,0.00042032,14]
[321078768,1711883455279,-170.535119,0.00042032,14]
[321078769,1711883455289,-216.475391,0.00042032,14]
[321078770,1711883455298,-170.535119,0.00042032,14]
[321078771,1711883455309,-170.535119,0.00042032,14]
[321078772,1711883455318,-170.535119,0.00042032,14]
[321078773,1711883455329,-170.535119,0.00042032,14]
[321078774,1711883455338,-152.603931,0.00042032,14]
[321078775,1711883455347,-151.0,0.00042032,14]
[321078776,1711883455356,-151.0,0.00042032,14]
[321078777,1711883455367,-151.0,0.00042032,14]
[321078778,1711883455376,-244.332672,0.00042032,14]
[321078779,1711883455385,-152.030222,0.00042032,14]
[321078780,1711883455394,-152.030222,0.00042032,14]
[321078781,1711883455404,-152.030222,0.00042032,14]
[321078782,1711883455418,-152.030222,0.00042032,14]
[321078783,1711883455427,-152.030222,0.00042032,14]
[321078784,1711883455437,-152.030222,0.00042032,14]
[321078785,1711883455447,-152.030222,0.00042032,14]
[321078786,1711883455456,-152.030222,0.00042032,14]
[321078787,1711883455466,-152.030222,0.00042032,14]
[321078788,1711883455475,-152.030222,0.00042032,14]
[321078789,1711883455485,-152.030222,0.00042032,14]
[321078790,1711883455494,-152.030222,0.00042032,14]
[321078791,1711883455504,-249.33041,0.00042032,14]
[321078792,1711883455513,-249.33041,0.00042032,14]
[321078793,1711883455522,-249.33041,0.00042032,14]
[321078794,1711883455531,-249.33041,0.00042032,14]
[321078795,1711883455540,-249.33041,0.00042032,14]
[321078796,1711883455549,-151.0,0.00042032,14]
[321078797,1711883455558,-249.33041,0.00042032,14]
[321078798,1711883455567,-151.0,0.00042032,14]
[321078799,1711883455577,-151.0,0.00042032,14]
[321078800,1711883455586,-164.625235,0.00042032,14]
[321078801,1711883455595,-249.33041,0.00042032,14]
[321078802,1711883455604,-249.33041,0.00042032,14]
[321078803,1711883455613,-249.33041,0.00042032,14]
[321078804,1711883455622,-249.33041,0.00042032,14]
[321078805,1711883455632,-249.33041,0.00042032,14]
[321078806,1711883455641,-195.652383,0.00042032,14]
[321078807,1711883455650,-249.33041,0.00042032,14]
[321078808,1711883455659,-151.0,0.00042032,7]
[321078809,1711883455668,-151.0,0.00042032,7]
[321078810,1711883455678,-151.0,0.00042032,7]
[321078811,1711883455687,-151.0,0.00042032,7]
[321078812,1711883455696,-151.0,0.00042032,7]
[321078813,1711883455705,-151.0,0.00042032,7]
[321078814,1711883455715,-151.0,0.00042032,14]
[321078815,1711883455725,-151.0,0.00042032,14]
[321078816,1711883455735,-420.087501,0.00042032,14]
[321078817,1711883455745,-151.0,0.00042032,14]
[321078818,1711883455754,-420.087501,0.00042032,14]
[321078819,1711883455764,-257.832601,0.00042032,14]
[321078820,1711883455773,-420.087501,0.00042032,14]
[321078821,1711883455782,-420.087501,0.00042032,14]
[321078822,1711883455791,-420.087501,0.00042032,14]
[321078823,1711883455799,-420.087501,0.00042032,14]
[321078824,1711883455809,-420.087501,0.00042032,14]
[321078825,1711883455818,-420.087501,0.00042032,14]
[321078826,1711883455828,-420.087501,0.00042032,14]
[321078827,1711883455838,-420.087501,0.00042032,14]
[321078828,1711883455847,-420.087501,0.00042032,14]
[321078829,1711883455858,-420.087501,0.00042032,14]
[321078830,1711883455867,-65857.87675913,0.00042032,2]
[321078831,1711883455877,-1210.0,0.00042032,2]
[321078832,1711883455886,-2141.16078123,0.00042032,2]
[321078833,1711883455895,-337.79282335,0.00042032,2]
[321078834,1711883455904,-2916.6961739,0.00042032,2]
[321078835,1711883455914,-4669.63131714,0.00042032,2]
[321078836,1711883455923,-221.14683168,0.00042032,2]
[321078837,1711883455932,-363.54830391,0.00042032,2]
[321078838,1711883455941,-1474.91450087,0.00042032,2]
[321078839,1711883455951,-7151.67697488,0.00042032,2]
[321078840,1711883455960,-10379.12648672,0.00042032,2]
[321078841,1711883455969,-12099.82048193,0.00042032,2]
[321078842,1711883455979,-5029.37510036,0.00042032,2]
[321078843,1711883455988,-2651.89277074,0.00042032,2]
[321078844,1711883455997,-2380.87559622,0.00042032,2]
[321078845,1711883456007,-5439.1148876,0.00042032,2]
[321078846,1711883456017,-133234.22509521,0.00042032,2]
[321078847,1711883456026,-3150.5437938,0.00042032,2]
[321078848,1711883456036,-10105.16178698,0.00042032,2]
[321078849,1711883456045,-159.07369023,0.00042032,2]
[321078850,1711883456055,-22117.83664688,0.00042032,2]
[321078851,1711883456064,-14677.6794095,0.00042032,2]
[321078852,1711883456074,-7486.98925437,0.00042032,2]
[321078853,1711883456084,-1036.59571325,0.00042032,2]
[321078854,1711883456093,-5789.8094099,0.00042032,2]
[321078855,1711883456103,-500.0,0.00042032,10]
[321078856,1711883456113,-1115.80140312,0.00042032,10]
[321078857,1711883456123,-738.73283465,0.00042032,10]
[321078858,1711883456133,-238.52273241,0.00042032,14]
[321078859,1711883456142,-65327.9956364,0.00042032,2]
[321078860,1711883456152,-843.66320234,0.00042032,2]
[321078861,1711883456162,-1013.97783636,0.00042032,2]
[321078862,1711883456171,-185.17846717,0.00042032,2]
[321078863,1711883456181,-8956.27167185,0.00042032,2]
[321078864,1711883456190,-1271.85829001,0.00042032,2]
[321078865,1711883456200,-4795.05598396,0.00042032,2]
[321078866,1711883456209,-477.87551561,0.00042032,2]
[321078867,1711883456219,-7198.63141272,0.00042032,2]
[321078868,1711883456229,-16163.60703114,0.00042032,2]
[321078869,1711883456245,-5841.44163538,0.00042032,2]
[321078870,1711883456255,-12455.19149563,0.00042032,2]
[321078871,1711883456265,-1864.55675456,0.00042032,2]
[321078872,1711883456275,-643.0,0.00042032,2]
[321078873,1711883456284,-941.35189793,0.00042032,2]
[321078874,1711883456294,-9030.19925763,0.00042032,2]
[321078875,1711883456303,-556.01376266,0.00042032,2]
[321078876,1711883456314,-1783.49802108,0.00042032,2]
[321078877,1711883456324,-169.42838186,0.00042032,2]
[321078878,1711883456334,-16256.48432618,0.00042032,2]
[321078879,1711883456344,-6619.95575982,0.00042032,2]
[321078880,1711883456353,-550.0,0.00042032,2]
[321078881,1711883456363,-978.23821522,0.00042032,2]
[321078882,1711883456372,-10395.81912793,0.00042032,2]
[321078883,1711883456382,-500.8522138,0.00042032,2]
[321078884,1711883456392,-161542.5090565,0.00042032,2]
[321078885,1711883456401,-6000.0,0.00042032,2]
[321078886,1711883456415,-10191.10613012,0.00042032,2]
[321078887,1711883456424,-886.1719975,0.00042032,2]
[321078888,1711883456434,-2133.73630659,0.00042032,10]
[321078889,1711883456444,-172808.17797978,0.00042032,7]
[321078890,1711883456455,-944.35049736,0.00042032,4]
[321078891,1711883456465,-1065.47550773,0.00042032,7]
[321078892,1711883456475,-26783.80498701,0.00042032,2]
[321078893,1711883456485,-9255.82196284,0.00042032,2]
[321078894,1711883456496,-467.66284952,0.00042032,2]
[321078895,1711883456506,-384.33308497,0.00042032,2]
[321078896,1711883456515,-240.02437995,0.00042032,2]
[321078897,1711883456525,-85107.19340719,0.00042032,7]
[321078898,1711883456537,-405501.25872875,0.00042032,2]
[321078899,1711883456547,-14779.36068436,0.00042032,2]
[321078900,1711883456557,-21336.23837352,0.00042032,2]
[321078901,1711883456566,-1763.06640852,0.00042032,2]
[321078902,1711883456576,-316.35941644,0.00042032,2]
[321078903,1711883456585,-531.91318533,0.00042032,2]
[321078904,1711883456594,-4898.13682048,0.00042032,2]
[321078905,1711883456604,-353.83618266,0.00042032,2]
[321078906,1711883456613,-591.49809478,0.00042032,2]
[321078907,1711883456622,-1051.00748489,0.00042032,7]
[321078908,1711883456632,-11499.64840646,0.00042032,2]
[321078909,1711883456641,-13000.0,0.00042032,2]
[321078910,1711883456651,-1003.43013615,0.00042032,2]
[321078911,1711883456660,-13640.92700761,0.00042032,2]
[321078912,1711883456670,-213.84541909,0.00042032,2]
[321078913,1711883456679,-636.14558707,0.00042032,2]
[321078914,1711883456689,-1002.55767186,0.00042032,2]
[321078915,1711883456698,-45626.56181141,0.00042032,2]
[321078916,1711883456708,-1784.28414854,0.00042032,2]
[321078917,1711883456717,-336.98983701,0.00042032,2]
[321078918,1711883456727,-5027.48193856,0.00042032,2]
[321078919,1711883456737,-14515.08726212,0.00042032,2]
[321078920,1711883456747,-1373.59347141,0.00042032,10]
[321078921,1711883456759,-1662.93596795,0.00042032,2]
[321078922,1711883456768,-540.6530469,0.00042032,5]
[321078923,1711883456779,-1909.1457129,0.00042032,5]
[321078924,1711883456789,-939.55970418,0.00042032,5]
[321078925,1711883456799,-569.79041211,0.00042032,5]
[321078926,1711883456810,-18082.00932829,0.00042032,5]
[321078927,1711883456820,-233.89934332,0.00042032,5]
[321078928,1711883456830,-24959.66679558,0.00042032,5]
[321078929,1711883456839,-40851.42074929,0.00042032,10]
[321078930,1711883456849,-204.61117608,0.00042032,5]
[321078931,1711883456858,-88798.83493149,0.00042032,2]
[321078932,1711883456868,-2499.29575221,0.00042032,2]
[321078933,1711883456877,-98951.94495751,0.00042032,2]
[321078934,1711883456886,-91319.31726327,0.00042032,7]
[321078935,1711883456896,-500.0,0.00042032,2]
[321078936,1711883456906,-192.28621157,0.00042032,7]
[321078937,1711883456915,-587.82205506,0.00042032,20]
[321078938,1711883456925,-47607.64304051,0.00042032,10]
[321078939,1711883456935,-50000.0,0.00042032,2]
[321078940,1711883456944,-55955.93105103,0.00042032,10]
[321078941,1711883456953,-3032.09827416,0.00042032,7]
[321078942,1711883456963,-1003.20879303,0.00042032,2]
[321078943,1711883456973,-10302.86722103,0.00042032,2]
[321078944,1711883456983,-14208.60456626,0.00042032,2]
[321078945,1711883456992,-546.97179548,0.00042032,2]
[321078946,1711883457001,-150.0,0.00042032,2]
[321078947,1711883457011,-634.3584294,0.00042032,2]
[321078948,1711883457021,-608.43470572,0.00042032,2]
[321078949,1711883457031,-208.62400116,0.00042032,2]
[321078950,1711883457040,-149029.58431355,0.00042032,2]
[321078951,1711883457050,-436.46975996,0.00042032,2]
[321078952,1711883457060,-1036.29166687,0.00042032,2]
[321078953,1711883457069,-20638.50906224,0.00042032,2]
[321078954,1711883457079,-2500.0,0.00042032,2]
[321078955,1711883457089,-562.78055981,0.00042032,2]
[321078956,1711883457099,-27003.57560254,0.00042032,2]
[321078957,1711883457108,-2311.81680079,0.00042032,2]
[321078958,1711883457118,-233.80346046,0.00042032,2]
[321078959,1711883457128,-1596.33824723,0.00042032,2]
[321078960,1711883457138,-523.54471295,0.00042032,2]
[321078961,1711883457147,-9482.14902014,0.00042032,2]
[321078962,1711883457157,-34879.99859905,0.00042032,2]
[321078963,1711883457167,-40909.78804948,0.00042032,2]
[321078964,1711883457176,-2517.71679565,0.00042032,2]
[321078965,1711883457186,-172.2025997,0.00042032,7]
[321078966,1711883457196,-824.57231804,0.00042032,10]
[321078967,1711883457206,-32784.93450226,0.00042032,2]
[321078968,1711883457215,-168.0,0.00042032,4]
[321078969,1711883457226,-29955.90021857,0.00042032,7]
[321078970,1711883457237,-40777.74154201,0.00042032,7]
[321078971,1711883457252,-17297.34581465,0.00042032,7]
[321078972,1711883457267,-1533011.89853052,0.00042032,7]
[321078973,1711883457277,-1000.0,0.00042032,2]
[321078974,1711883457287,-1000.0,0.00042032,2]
[321078975,1711883457298,-1000.0,0.00042032,2]
[321078976,1711883457308,-1000.0,0.00042032,2]
[321078977,1711883457318,-1000.0,0.00042032,2]
[321078978,1711883457329,-1000.0,0.00042032,2]
[321078979,1711883457339,-1106.434461,0.00042032,2]
[321078980,1711883457349,-5220.63,0.00042032,2]
[321078981,1711883457359,-5220.63,0.00042032,2]
[321078982,1711883457368,-5220.63,0.00042032,2]
[321078983,1711883457378,-5220.63,0.00042032,2]
[321078984,1711883457388,-5220.63,0.00042032,2]
[321078985,1711883457397,-5220.63,0.00042032,2]
[321078986,1711883457408,-5220.63,0.00042032,2]
[321078987,1711883457419,-5220.63,0.00042032,2]
[321078988,1711883457428,-5220.63,0.00042032,2]
[321078989,1711883457439,-5220.63,0.00042032,2]
[321078990,1711883457450,-5220.63,0.00042032,2]
[321078991,1711883457461,-5220.63,0.00042032,2]
[321078992,1711883457470,-5220.63,0.00042032,2]
[321078993,1711883457481,-5220.63,0.00042032,2]
[321078994,1711883457492,-5220.63,0.00042032,2]
[321078995,1711883457503,-5220.63,0.00042032,2]
[321078996,1711883457513,-5220.63,0.00042032,2]
[321078997,1711883457525,-5220.63,0.00042032,2]
[321078998,1711883457534,-5220.63,0.00042032,2]
[321078999,1711883457544,-5220.63,0.00042032,2]
[321079000,1711883457553,-5220.63,0.00042032,2]
[321079001,1711883457562,-5220.63,0.00042032,2]
[321079002,1711883457572,-5220.63,0.00042032,2]
[321079003,1711883457581,-5220.75027916,0.00042032,2]
[321079004,1711883457592,-157.591198,0.00042033,41]
[321079005,1711883457602,-19293.87732251,0.0004204,2]
[321079006,1711883457612,-151.0,0.00042048,14]
[321079007,1711883457623,-151.0,0.00042048,14]
[321079008,1711883457633,-151.0,0.00042048,14]
[321079009,1711883457643,-151.0,0.00042048,14]
[321079010,1711883457654,-1928.129715,0.00042048,14]
[321079011,1711883457665,-1928.129715,0.00042048,14]
[321079012,1711883457674,-1928.129715,0.00042048,14]
[321079013,1711883457684,-1928.129715,0.00042048,14]
[321079014,1711883457694,-1928.129715,0.00042048,14]
[321079015,1711883457703,-1928.129715,0.00042048,14]
[321079016,1711883457713,-1928.129715,0.00042048,14]
[321079017,1711883457723,-1928.129715,0.00042048,14]
[321079018,1711883457733,-1928.129715,0.00042048,14]
[321079019,1711883457742,-1928.129715,0.00042048,14]
[321079020,1711883457754,-151.0,0.00042048,14]
[321079021,1711883457763,-1928.129715,0.00042048,14]
[321079022,1711883457773,-151.0,0.00042048,14]
[321079023,1711883457783,-427.07422,0.00042048,14]
[321079024,1711883457793,-160.075477,0.00042048,14]
[321079025,1711883457803,-427.07422,0.00042048,14]
[321079026,1711883457812,-427.07422,0.00042048,14]
[321079027,1711883457822,-427.07422,0.00042048,14]
[321079028,1711883457831,-427.07422,0.00042048,14]
[321079029,1711883457843,-427.07422,0.00042048,14]
[321079030,1711883457853,-427.07422,0.00042048,14]
[321079031,1711883457862,-427.07422,0.00042048,14]
[321079032,1711883457871,-1928.129715,0.00042048,14]
[321079033,1711883457881,-427.07422,0.00042048,14]
[321079034,1711883457890,-427.07422,0.00042048,14]
[321079035,1711883457900,-427.07422,0.00042048,14]
[321079036,1711883457910,-151.0,0.00042048,14]
[321079037,1711883457919,-427.07422,0.00042048,14]
[321079038,1711883457929,-151.0,0.00042048,14]
[321079039,1711883457938,-151.0,0.00042048,14]
[321079040,1711883457948,-157.049937,0.00042048,14]
[321079041,1711883457958,-151.0,0.00042048,14]
[321079042,1711883457968,-151.0,0.00042048,14]
[321079043,1711883457977,-151.0,0.00042048,14]
[321079044,1711883457987,-164.056445,0.00042048,14]
[321079045,1711883457997,-151.0,0.00042048,14]
[321079046,1711883458006,-151.0,0.00042048,14]
[321079047,1711883458016,-151.0,0.00042048,14]
[321079048,1711883458025,-151.0,0.00042048,14]
[321079049,1711883458035,-151.0,0.00042048,14]
[321079050,1711883458045,-151.0,0.00042048,14]
[321079051,1711883458055,-151.0,0.00042048,14]
[321079052,1711883458065,-286.0,0.00042048,14]
[321079053,1711883458075,-191.369422,0.00042048,14]
[321079054,1711883458085,-165.261704,0.00042048,14]
[321079055,1711883458095,-165.261704,0.00042048,14]
[321079056,1711883458105,-165.261704,0.00042048,14]
[321079057,1711883458115,-165.261704,0.00042048,14]
[321079058,1711883458125,-165.261704,0.00042048,14]
[321079059,1711883458135,-165.261704,0.00042048,14]
[321079060,1711883458145,-165.261704,0.00042048,14]
[321079061,1711883458155,-165.261704,0.00042048,14]
[321079063,1711883458356,-165.261704,0.00042048,14]
[321079064,1711883458369,-165.261704,0.00042048,14]
[321079065,1711883458378,-165.261704,0.00042048,14]
[321079066,1711883458388,-165.261704,0.00042048,14]
[321079067,1711883458397,-1000.0,0.00042055,14]
[321079068,1711883458408,-150.5,0.00042067,15]
[321079069,1711883458419,-3348.46694348,0.00042114,4]
[321079070,1711883458428,-2205.06765989,0.00042116,2]
[321079071,1711883458438,-207.2218864,0.00042116,15]
[321079072,1711883458447,-1000.0,0.00042123,14]
[321079073,1711883458458,-500.0,0.00042191,4]
[321079074,1711883458469,-500.0,0.00042191,4]
[321079075,1711883458478,-500.0,0.00042191,4]
[321079076,1711883458488,-679.43,0.00042191,2]
[321079077,1711883458499,-500.0,0.00042191,4]
[321079078,1711883458509,-500.0,0.00042191,4]
[321079079,1711883458521,-500.0,0.00042191,4]
[321079080,1711883458531,-150.0,0.00042191,4]
[321079081,1711883458542,-555.12,0.00042191,4]
[321079082,1711883458551,-500.0,0.00042191,2]
[321079083,1711883458562,-500.0,0.00042191,4]
[321079084,1711883458573,-500.0,0.00042191,4]
[321079085,1711883458582,-549.48,0.00042191,4]
[321079086,1711883458592,-1070.48,0.00042191,4]
[321079087,1711883458602,-231.60718853,0.00042191,4]
[321079088,1711883458613,-500.0,0.00042191,4]
[321079089,1711883458623,-500.0,0.00042191,4]
[321079090,1711883458632,-508.09175965,0.00042191,4]
[321079091,1711883458641,-500.0,0.00042191,4]
[321079092,1711883458652,-500.0,0.00042191,4]
[321079093,1711883458663,-500.0,0.00042191,4]
[321079094,1711883458673,-620.71296033,0.00042191,4]
[321079095,1711883458682,-1862.31,0.00042191,4]
[321079096,1711883458691,-346.6840055,0.00042191,4]
[321079097,1711883458700,-2605.92,0.00042191,4]
[321079098,1711883458710,-500.0,0.00042191,4]
[321079099,1711883458720,-9670.17,0.00042191,4]
[321079100,1711883458730,-1122.17,0.00042191,4]
[321079101,1711883458739,-500.0,0.00042191,4]
[321079102,1711883458749,-500.0,0.00042191,4]
[321079103,1711883458757,-1712.16,0.00042191,4]
[321079104,1711883458767,-500.0,0.00042191,4]
[321079105,1711883458776,-2748.38,0.00042191,4]
[321079106,1711883458785,-500.0,0.00042191,4]
[321079107,1711883458794,-500.0,0.00042191,4]
[321079108,1711883458803,-500.0,0.00042191,4]
[321079109,1711883458813,-500.0,0.00042191,4]
[321079110,1711883458822,-500.0,0.00042191,4]
[321079111,1711883458832,-4301.58,0.00042191,4]
[321079112,1711883458842,-531.6,0.00042191,4]
[321079113,1711883458852,-500.0,0.00042191,4]
[321079114,1711883458862,-500.0,0.00042191,4]
[321079115,1711883458872,-9908.7,0.00042191,4]
[321079116,1711883458882,-3656.45,0.00042191,4]
[321079117,1711883458891,-707.92,0.00042191,4]
[321079118,1711883458900,-2921.85,0.00042191,4]
[321079119,1711883458910,-500.0,0.00042191,4]
[321079120,1711883458920,-500.0,0.00042191,4]
[321079121,1711883458930,-3783.97,0.00042191,4]
[321079122,1711883458940,-500.0,0.00042191,4]
[321079123,1711883458951,-2102.16,0.00042191,4]
[321079124,1711883458961,-15160.16,0.00042191,4]
[321079125,1711883458971,-2273.33,0.00042191,4]
[321079126,1711883458980,-1657.86,0.00042191,4]
[321079127,1711883458990,-500.0,0.00042191,4]
[321079128,1711883458999,-500.0,0.00042191,4]
[321079129,1711883459009,-3435.73,0.00042191,4]
[321079130,1711883459018,-500.0,0.00042191,4]
[321079131,1711883459027,-500.0,0.00042191,4]
[321079132,1711883459037,-500.0,0.00042191,4]
[321079133,1711883459046,-3547.44,0.00042191,4]
[321079134,1711883459056,-2803.49,0.00042191,4]
[321079135,1711883459066,-500.0,0.00042191,4]
[321079136,1711883459076,-500.0,0.00042191,4]
[321079137,1711883459085,-202.86805847,0.00042191,4]
[321079138,1711883459095,-4194.52,0.00042191,4]
[321079139,1711883459104,-9215.25,0.00042191,4]
[321079140,1711883459113,-500.0,0.00042191,4]
[321079141,1711883459123,-500.0,0.00042191,4]
[321079142,1711883459132,-2011.87,0.00042191,4]
[321079143,1711883459141,-500.0,0.00042191,4]
[321079144,1711883459150,-500.0,0.00042191,4]
[321079145,1711883459160,-4752.87,0.00042191,4]
[321079146,1711883459170,-500.0,0.00042191,4]
[321079147,1711883459179,-2598.4,0.00042191,4]
[321079148,1711883459188,-2126.31,0.00042191,4]
[321079149,1711883459199,-11877.83,0.00042191,4]
[321079150,1711883459208,-518.02,0.00042191,4]
[321079151,1711883459218,-1937.78,0.00042191,4]
[321079152,1711883459228,-10453.94,0.00042191,4]
[321079153,1711883459238,-1076.45,0.00042191,4]
[321079154,1711883459248,-500.0,0.00042191,4]
[321079155,1711883459257,-500.0,0.00042191,4]
[321079156,1711883459267,-500.0,0.00042191,4]
[321079157,1711883459277,-2336.79,0.00042191,4]
[321079158,1711883459287,-552.15,0.00042191,4]
[321079159,1711883459297,-1920.41,0.00042191,4]
[321079160,1711883459306,-2290.08,0.00042191,4]
[321079161,1711883459316,-1182.09,0.00042191,4]
[321079162,1711883459325,-3941.13,0.00042191,4]
[321079163,1711883459335,-2482.25,0.00042191,4]
[321079164,1711883459345,-16241.59,0.00042191,4]
[321079165,1711883459354,-3222.61,0.00042191,4]
[321079166,1711883459364,-500.0,0.00042191,4]
[321079167,1711883459373,-500.0,0.00042191,4]
[321079168,1711883459382,-535.83,0.00042191,4]
[321079169,1711883459392,-500.0,0.00042191,4]
[321079170,1711883459401,-2590.66,0.00042191,4]
[321079171,1711883459415,-309.95918287,0.00042191,4]
[321079172,1711883459424,-609.57,0.00042191,4]
[321079173,1711883459434,-3509.53,0.00042191,4]
[321079174,1711883459443,-500.0,0.00042191,4]
[321079175,1711883459454,-5528.21,0.00042191,4]
[321079176,1711883459463,-663.74,0.00042191,4]
[321079177,1711883459473,-2238.05,0.00042191,4]
[321079178,1711883459482,-2433.18,0.00042191,4]
[321079179,1711883459492,-500.0,0.00042191,4]
[321079180,1711883459501,-18780.41,0.00042191,4]
[321079181,1711883459510,-502.77,0.00042191,4]
[321079182,1711883459519,-1950.88,0.00042191,4]
[321079183,1711883459529,-500.0,0.00042191,4]
[321079184,1711883459539,-500.0,0.00042191,4]
[321079185,1711883459548,-608.39,0.00042191,4]
[321079186,1711883459557,-500.0,0.00042191,4]
[321079187,1711883459567,-16662.45,0.00042191,4]
[321079188,1711883459576,-1551.3,0.00042191,4]
[321079189,1711883459586,-682.79,0.00042191,4]
[321079190,1711883459595,-500.0,0.00042191,4]
[321079191,1711883459605,-4294.08,0.00042191,4]
[321079192,1711883459614,-935.22,0.00042191,4]
[321079193,1711883459623,-1935.59,0.00042191,4]
[321079194,1711883459633,-1000.0,0.00042192,14]
[321079195,1711883459643,-500.0,0.00042256,7]
[321079196,1711883459652,-500.0,0.00042256,7]
[321079197,1711883459663,-500.0,0.00042256,7]
[321079198,1711883459672,-500.0,0.00042256,7]
[321079199,1711883459682,-500.0,0.00042256,7]
[321079200,1711883459692,-500.0,0.00042256,7]
[321079201,1711883459702,-1000.0,0.0004226,14]
[321079202,1711883459711,-1000.0,0.00042329,14]
[321079203,1711883459721,-1000.0,0.00042397,14]
[321079204,1711883459731,-500.0,0.00042465,4]
[321079205,1711883459741,-151.0,0.00042465,14]
[321079206,1711883459751,-500.0,0.00042465,4]
[321079207,1711883459761,-500.0,0.00042465,4]
[321079208,1711883459771,-679.43,0.00042465,2]
[321079209,1711883459780,-500.0,0.00042465,4]
[321079210,1711883459789,-151.0,0.00042465,14]
[321079211,1711883459799,-500.0,0.00042465,4]
[321079212,1711883459809,-500.0,0.00042465,4]
[321079213,1711883459819,-150.0,0.00042465,4]
[321079214,1711883459828,-555.12,0.00042465,4]
[321079215,1711883459837,-500.0,0.00042465,2]
[321079216,1711883459847,-500.0,0.00042465,4]
[321079217,1711883459857,-312.466494,0.00042465,14]
[321079218,1711883459867,-174.551947,0.00042465,14]
[321079219,1711883459877,-312.466486,0.00042465,14]
[321079220,1711883459886,-174.551956,0.00042465,14]
[321079221,1711883459895,-500.0,0.00042465,4]
[321079222,1711883459905,-431.925234,0.00042465,14]
[321079223,1711883459915,-431.925243,0.00042465,14]
[321079224,1711883459924,-549.48,0.00042465,4]
[321079225,1711883459934,-1070.48,0.00042465,4]
[321079226,1711883459943,-151.0,0.00042465,14]
[321079227,1711883459952,-267.193341,0.00042465,14]
[321079228,1711883459961,-338.821322,0.00042465,14]
[321079229,1711883459971,-338.821322,0.00042465,14]
[321079230,1711883459980,-500.0,0.00042465,4]
[321079231,1711883459990,-500.0,0.00042465,4]
[321079232,1711883459999,-500.0,0.00042465,4]
[321079233,1711883460008,-500.0,0.00042465,4]
[321079234,1711883460018,-500.0,0.00042465,4]
[321079235,1711883460028,-1862.31,0.00042465,4]
[321079236,1711883460037,-2605.92,0.00042465,4]
[321079237,1711883460047,-500.0,0.00042465,4]
[321079238,1711883460057,-9670.17,0.00042465,4]
[321079239,1711883460066,-1122.17,0.00042465,4]
[321079240,1711883460076,-500.0,0.00042465,4]
[321079241,1711883460086,-500.0,0.00042465,4]